[Event "9th RTU Rapid 2019"]
[Site "Riga"]
[Date "2019.08.04"]
[Round "1.1"]
[White "Maklakova, Nellija"]
[Black "Svane, Rasmus"]
[Result "0-1"]
[WhiteElo "1877"]
[BlackElo "2612"]
[PlyCount "54"]
[EventDate "2019.08.05"]
[EventType "swiss"]
[EventCountry "LAT"]
[TimeControl "5400+30"]
[WhiteClock "0:04:15"]
[BlackClock "0:04:06"]

1. c4 {[%emt 1:15:26]} Nf6 {[%emt 1:15:31]} 2. d4 {[%emt 0:00:30]} e6 {[%emt 0:00:28]} 3. Nf3 {[%emt 0:00:35]} d5 {[%emt 0:00:49]} 4. e3 {[%emt 0:00:45]} a6 {[%emt 0:00:44]} 5. cxd5 {[%emt 0:00:31]} exd5 {[%emt 0:00:30]} 6. Bd3 {[%emt 0:00:30]} Bd6 {[%emt 0:00:31]} 7. O-O {[%emt 0:00:30]} O-O {[%emt 0:00:30]} 8. Ne5 {[%emt 0:01:17]} c5 {[%emt 0:00:32]} 9. f4 {[%emt 0:00:40]} Nc6 {[%emt 0:00:29]} 10. Nc3 {[%emt 0:01:18]} cxd4 {[%emt 0:00:53]} 11. exd4 {[%emt 0:00:28]} Qb6 {[%emt 0:02:31]} 12. Nxc6 {[%emt 0:00:48]} bxc6 {[%emt 0:00:34]} 13. Bb1 {[%emt 0:00:43]} Re8 {[%emt 0:00:46]} 14. f5 {[%emt 0:01:01]} a5 {[%emt 0:01:01]} 15. Kh1 {[%emt 0:02:07]} Ba6 {[%emt 0:00:31]} 16. Bd3 {[%emt 0:01:28]} Qxd4 {[%emt 0:00:58]} 17. Bxa6 {[%emt 0:00:29]} Qh4 {[%emt 0:01:32]} 18. g3 {[%emt 0:01:02]} Bxg3 {[%emt 0:00:32]} 19. Qc2 {[%emt 0:00:51]} Rxa6 {[%emt 0:02:49]} 20. Rg1 {[%emt 0:01:21]} Ng4 {[%emt 0:03:25]} 21. Rxg3 {[%emt 0:00:54]} Re1+ {[%emt 0:00:37]} 22. Rg1 {[%emt 0:00:31]} Nf2+ {[%emt 0:00:45]} 23. Kg2 {[%emt 0:03:45]} Qg4+ {[%emt 0:00:27]} 24. Kxf2 {[%emt 0:00:27]} Qxg1+ {[%emt 0:00:26]} 25. Kf3 {[%emt 0:00:30]} Rf1+ {[%emt 0:00:28]} 26. Ke2 {[%emt 0:00:28]} Rf2+ {[%emt 0:00:29]} 27. Kd3 {[%emt 0:00:29]} Rf3+ {[%emt 0:00:27]} 0-1

[Event "9th RTU Rapid 2019"]
[Site "Riga"]
[Date "2019.08.04"]
[Round "1.2"]
[White "Pultinevicius, Paulius"]
[Black "Strade, Arita"]
[Result "1-0"]
[WhiteElo "2501"]
[BlackElo "1882"]
[PlyCount "81"]
[EventDate "2019.08.05"]
[EventType "swiss"]
[EventCountry "LAT"]
[TimeControl "5400+30"]
[WhiteClock "0:04:55"]
[BlackClock "0:09:55"]

1. d4 {[%emt 1:15:22]} e6 {[%emt 1:15:27]} 2. c4 {[%emt 0:00:28]} Nf6 {[%emt 0:00:29]} 3. g3 {[%emt 0:00:33]} Be7 {[%emt 0:00:40]} 4. Bg2 {[%emt 0:00:28]} O-O {[%emt 0:00:39]} 5. e4 {[%emt 0:00:28]} d5 {[%emt 0:00:47]} 6. e5 {[%emt 0:00:26]} Nfd7 {[%emt 0:00:27]} 7. cxd5 {[%emt 0:00:50]} exd5 {[%emt 0:00:42]} 8. Nc3 {[%emt 0:01:09]} Bb4 {[%emt 0:01:09]} 9. Nge2 {[%emt 0:00:38]} c5 {[%emt 0:00:47]} 10. Bxd5 {[%emt 0:00:45]} Nb6 {[%emt 0:01:33]} 11. Bg2 {[%emt 0:00:30]} cxd4 {[%emt 0:01:17]} 12. Qxd4 {[%emt 0:01:22]} Qe7 {[%emt 0:00:42]} 13. Bf4 {[%emt 0:00:43]} Rd8 {[%emt 0:01:18]} 14. Qe4 {[%emt 0:00:39]} Nc6 {[%emt 0:00:44]} 15. O-O {[%emt 0:00:35]} g5 {[%emt 0:00:34]} 16. Be3 {[%emt 0:00:50]} Qxe5 {[%emt 0:00:46]} 17. Qxe5 {[%emt 0:00:34]} Nxe5 {[%emt 0:00:27]} 18. Bxg5 {[%emt 0:00:27]} Rd3 {[%emt 0:01:41]} 19. Nf4 {[%emt 0:00:58]} Rd4 {[%emt 0:01:27]} 20. Ncd5 {[%emt 0:01:26]} Nxd5 {[%emt 0:00:57]} 21. Nxd5 {[%emt 0:00:27]} Be6 {[%emt 0:00:45]} 22. Nxb4 {[%emt 0:01:05]} Rxb4 {[%emt 0:00:26]} 23. b3 {[%emt 0:00:26]} Kg7 {[%emt 0:00:56]} 24. Bd2 {[%emt 0:00:37]} Rb6 {[%emt 0:00:29]} 25. Be3 {[%emt 0:00:32]} Rb5 {[%emt 0:00:33]} 26. Rfc1 {[%emt 0:00:34]} Bd5 {[%emt 0:00:52]} 27. Bxd5 {[%emt 0:00:47]} Rxd5 {[%emt 0:00:26]} 28. Rc7 {[%emt 0:00:27]} b6 {[%emt 0:01:27]} 29. Rac1 {[%emt 0:00:33]} Nd3 {[%emt 0:00:38]} 30. R1c4 {[%emt 0:00:27]} Ne5 {[%emt 0:00:37]} 31. Rc3 {[%emt 0:00:37]} Nf3+ {[%emt 0:00:31]} 32. Kg2 {[%emt 0:00:28]} Ne1+ {[%emt 0:00:30]} 33. Kf1 {[%emt 0:00:26]} Nd3 {[%emt 0:00:26]} 34. Ke2 {[%emt 0:00:37]} Nb4 {[%emt 0:00:28]} 35. R3c4 {[%emt 0:00:39]} Na6 {[%emt 0:00:41]} 36. Rg4+ {[%emt 0:00:27]} Kf6 {[%emt 0:00:41]} 37. Rf4+ {[%emt 0:00:29]} Ke6 {[%emt 0:00:27]} 38. Rcxf7 {[%emt 0:00:28]} Rc8 {[%emt 0:00:45]} 39. R4f6+ {[%emt 0:00:26]} Ke5 {[%emt 0:00:27]} 40. f4+ {[%emt 0:00:26]} Ke4 {[%emt 0:00:27]} 41. Re6+ {[%emt 0:00:26]} 1-0

[Event "9th RTU Rapid 2019"]
[Site "Riga"]
[Date "2019.08.04"]
[Round "1.3"]
[White "Jeet, Jain"]
[Black "Nevednichy, Vladislav"]
[Result "1-0"]
[WhiteElo "1828"]
[BlackElo "2495"]
[PlyCount "89"]
[EventDate "2019.08.05"]
[EventType "swiss"]
[EventCountry "LAT"]
[TimeControl "5400+30"]
[WhiteClock "0:00:26"]
[BlackClock "0:02:15"]

1. e4 {[%emt 1:15:22]} c5 {[%emt 1:15:28]} 2. Nf3 {[%emt 0:00:27]} d6 {[%emt 0:00:27]} 3. Bb5+ {[%emt 0:00:27]} Nd7 {[%emt 0:00:30]} 4. c3 {[%emt 0:00:26]} Ngf6 {[%emt 0:00:27]} 5. Qe2 {[%emt 0:00:27]} a6 {[%emt 0:00:26]} 6. Ba4 {[%emt 0:00:26]} e5 {[%emt 0:00:32]} 7. O-O {[%emt 0:00:33]} Be7 {[%emt 0:00:28]} 8. d4 {[%emt 0:00:31]} b5 {[%emt 0:00:36]} 9. Bc2 {[%emt 0:00:27]} O-O {[%emt 0:00:32]} 10. Rd1 {[%emt 0:01:32]} Qc7 {[%emt 0:00:28]} 11. a4 {[%emt 0:01:12]} Rb8 {[%emt 0:01:48]} 12. dxe5 {[%emt 0:01:38]} dxe5 {[%emt 0:00:50]} 13. c4 {[%emt 0:00:30]} b4 {[%emt 0:02:00]} 14. Nbd2 {[%emt 0:00:28]} Re8 {[%emt 0:03:49]} 15. Nf1 {[%emt 0:01:00]} b3 {[%emt 0:00:27]} 16. Bd3 {[%emt 0:01:05]} Nf8 {[%emt 0:04:15]} 17. Ne3 {[%emt 0:00:56]} Ne6 {[%emt 0:00:30]} 18. Nd5 {[%emt 0:00:43]} Qd6 {[%emt 0:01:06]} 19. g3 {[%emt 0:00:52]} Nd7 {[%emt 0:01:52]} 20. Bd2 {[%emt 0:03:09]} Nd4 {[%emt 0:00:36]} 21. Nxd4 {[%emt 0:00:31]} cxd4 {[%emt 0:00:27]} 22. f4 {[%emt 0:00:35]} Bb7 {[%emt 0:00:59]} 23. Rf1 {[%emt 0:00:38]} Bf8 {[%emt 0:01:13]} 24. Rf3 {[%emt 0:01:33]} Bxd5 {[%emt 0:00:40]} 25. cxd5 {[%emt 0:00:29]} Qb6 {[%emt 0:01:03]} 26. Kg2 {[%emt 0:00:36]} Bd6 {[%emt 0:00:41]} 27. Bxa6 {[%emt 0:01:12]} exf4 {[%emt 0:00:26]} 28. gxf4 {[%emt 0:00:26]} Nc5 {[%emt 0:00:26]} 29. Bd3 {[%emt 0:00:29]} Nxe4 {[%emt 0:00:31]} 30. Bb5 {[%emt 0:00:56]} Re7 {[%emt 0:00:27]} 31. Qd3 {[%emt 0:01:13]} Nxd2 {[%emt 0:00:49]} 32. Qxd2 {[%emt 0:00:28]} Qc5 {[%emt 0:00:26]} 33. Rd1 {[%emt 0:00:35]} Re4 {[%emt 0:00:44]} 34. Rc1 {[%emt 0:00:45]} Qb4 {[%emt 0:00:31]} 35. Qxb4 {[%emt 0:00:47]} Bxb4 {[%emt 0:00:26]} 36. Rxb3 {[%emt 0:00:30]} Bd2 {[%emt 0:00:30]} 37. Ra1 {[%emt 0:01:24]} Rxf4 {[%emt 0:00:30]} 38. a5 {[%emt 0:00:33]} Be3 {[%emt 0:00:27]} 39. a6 {[%emt 0:00:46]} d3 {[%emt 0:00:28]} 40. Rxd3 {[%emt 0:00:47]} Rxb5 {[%emt 0:00:29]} 41. Rxe3 {[%emt 0:00:29]} g5 {[%emt 0:00:45]} 42. a7 {[%emt 0:00:33]} Rxb2+ {[%emt 0:00:26]} 43. Kg1 {[%emt 0:00:43]} Kg7 {[%emt 0:00:35]} 44. a8=Q {[%emt 0:00:29]} Rff2 {[%emt 0:00:28]} 45. d6 {[%emt 0:00:37]} 1-0

[Event "9th RTU Rapid 2019"]
[Site "Riga"]
[Date "2019.08.04"]
[Round "1.4"]
[White "Wagner, Dennis"]
[Black "Blinovs, Artjoms"]
[Result "1-0"]
[WhiteElo "2473"]
[BlackElo "1803"]
[PlyCount "63"]
[EventDate "2019.08.05"]
[EventType "swiss"]
[EventCountry "LAT"]
[TimeControl "5400+30"]
[WhiteClock "0:00:46"]
[BlackClock "0:07:07"]

1. d4 {[%emt 1:15:23]} d5 {[%emt 1:15:21]} 2. c4 {[%emt 0:00:27]} e6 {[%emt 0:00:33]} 3. Nc3 {[%emt 0:00:27]} Be7 {[%emt 0:00:43]} 4. cxd5 {[%emt 0:00:34]} exd5 {[%emt 0:00:27]} 5. Bf4 {[%emt 0:00:27]} c6 {[%emt 0:00:59]} 6. e3 {[%emt 0:00:27]} Bf5 {[%emt 0:00:49]} 7. g4 {[%emt 0:00:27]} Bg6 {[%emt 0:00:49]} 8. Nf3 {[%emt 0:02:20]} Nf6 {[%emt 0:02:10]} 9. Ne5 {[%emt 0:00:37]} Nbd7 {[%emt 0:01:16]} 10. h4 {[%emt 0:00:27]} h5 {[%emt 0:02:30]} 11. g5 {[%emt 0:00:27]} Ne4 {[%emt 0:01:00]} 12. Nxg6 {[%emt 0:00:28]} fxg6 {[%emt 0:00:34]} 13. Nxe4 {[%emt 0:02:46]} dxe4 {[%emt 0:00:27]} 14. Bg2 {[%emt 0:00:26]} Bb4+ {[%emt 0:01:46]} 15. Kf1 {[%emt 0:00:27]} Qe7 {[%emt 0:01:05]} 16. Qc2 {[%emt 0:00:27]} Nf8 {[%emt 0:02:31]} 17. Bxe4 {[%emt 0:00:35]} Qe6 {[%emt 0:01:01]} 18. a3 {[%emt 0:02:28]} Ba5 {[%emt 0:01:40]} 19. b4 {[%emt 0:00:33]} Bb6 {[%emt 0:00:28]} 20. b5 {[%emt 0:00:41]} Rc8 {[%emt 0:00:49]} 21. bxc6 {[%emt 0:00:28]} bxc6 {[%emt 0:00:27]} 22. Rc1 {[%emt 0:00:33]} c5 {[%emt 0:00:55]} 23. d5 {[%emt 0:00:26]} Qf7 {[%emt 0:00:41]} 24. Rh3 {[%emt 0:01:02]} c4 {[%emt 0:01:11]} 25. Rf3 {[%emt 0:00:27]} Qb7 {[%emt 0:00:39]} 26. Be5 {[%emt 0:01:01]} c3 {[%emt 0:01:12]} 27. Bxg6+ {[%emt 0:00:34]} Kd8 {[%emt 0:00:37]} 28. Rf7 {[%emt 0:00:43]} Qa6+ {[%emt 0:00:31]} 29. Bd3 {[%emt 0:01:02]} Qxa3 {[%emt 0:00:29]} 30. Bxg7 {[%emt 0:00:28]} Rg8 {[%emt 0:00:28]} 31. Bb5 {[%emt 0:00:45]} Qd6 {[%emt 0:00:36]} 32. Bf6+ {[%emt 0:00:30]} 1-0

[Event "9th RTU Rapid 2019"]
[Site "Riga"]
[Date "2019.08.04"]
[Round "1.5"]
[White "Kirsanova, July"]
[Black "Kantans, Toms"]
[Result "0-1"]
[WhiteElo "1745"]
[BlackElo "2471"]
[PlyCount "48"]
[EventDate "2019.08.05"]
[EventType "swiss"]
[EventCountry "LAT"]
[TimeControl "5400+30"]
[WhiteClock "0:05:30"]
[BlackClock "0:00:07"]

1. c4 {[%emt 1:15:22]} e5 {[%emt 1:15:22]} 2. Nc3 {[%emt 0:00:26]} Nc6 {[%emt 0:00:27]} 3. g3 {[%emt 0:00:35]} Bc5 {[%emt 0:00:27]} 4. Bg2 {[%emt 0:00:37]} d6 {[%emt 0:00:26]} 5. e3 {[%emt 0:01:05]} a6 {[%emt 0:00:27]} 6. Nge2 {[%emt 0:00:43]} Ba7 {[%emt 0:00:27]} 7. d4 {[%emt 0:00:39]} h5 {[%emt 0:00:28]} 8. b3 {[%emt 0:01:19]} h4 {[%emt 0:00:29]} 9. h3 {[%emt 0:01:06]} hxg3 {[%emt 0:00:29]} 10. fxg3 {[%emt 0:00:34]} Nge7 {[%emt 0:00:41]} 11. Nd5 {[%emt 0:02:05]} Nf5 {[%emt 0:01:46]} 12. g4 {[%emt 0:02:33]} Nh4 {[%emt 0:00:45]} 13. Be4 {[%emt 0:01:01]} Ne7 {[%emt 0:01:27]} 14. Bb2 {[%emt 0:02:27]} c6 {[%emt 0:01:21]} 15. Ndc3 {[%emt 0:01:54]} f5 {[%emt 0:01:14]} 16. gxf5 {[%emt 0:00:53]} Nexf5 {[%emt 0:00:31]} 17. Kd2 {[%emt 0:02:42]} exd4 {[%emt 0:01:43]} 18. Nxd4 {[%emt 0:00:49]} Bxd4 {[%emt 0:00:43]} 19. exd4 {[%emt 0:01:04]} Qg5+ {[%emt 0:00:28]} 20. Ke1 {[%emt 0:01:20]} O-O {[%emt 0:01:29]} 21. Bc1 {[%emt 0:00:56]} Ng2+ {[%emt 0:02:27]} 22. Ke2 {[%emt 0:00:40]} Nfe3 {[%emt 0:01:18]} 23. Qd2 {[%emt 0:00:33]} Qg3 {[%emt 0:01:07]} 24. Kd3 {[%emt 0:00:30]} Nf4# {[%emt 0:00:28]} 0-1

[Event "9th RTU Rapid 2019"]
[Site "Riga"]
[Date "2019.08.04"]
[Round "1.6"]
[White "Vishnu Prasanna. V"]
[Black "Breikss, Peteris"]
[Result "1-0"]
[WhiteElo "2465"]
[BlackElo "1789"]
[PlyCount "61"]
[EventDate "2019.08.05"]
[EventType "swiss"]
[EventCountry "LAT"]
[TimeControl "5400+30"]
[WhiteClock "0:02:32"]
[BlackClock "0:09:43"]

1. d4 {[%emt 1:15:25]} c5 {[%emt 1:15:24]} 2. e3 {[%emt 0:00:28]} cxd4 {[%emt 0:00:31]} 3. exd4 {[%emt 0:00:27]} d5 {[%emt 0:00:28]} 4. Bd3 {[%emt 0:00:28]} Nf6 {[%emt 0:00:29]} 5. c3 {[%emt 0:00:27]} Bg4 {[%emt 0:00:39]} 6. Ne2 {[%emt 0:00:27]} Nc6 {[%emt 0:00:36]} 7. O-O {[%emt 0:00:28]} e6 {[%emt 0:00:33]} 8. Qe1 {[%emt 0:00:28]} Bh5 {[%emt 0:01:05]} 9. Nf4 {[%emt 0:00:31]} Bg6 {[%emt 0:00:30]} 10. Nxg6 {[%emt 0:00:30]} hxg6 {[%emt 0:00:28]} 11. Nd2 {[%emt 0:00:29]} Bd6 {[%emt 0:00:29]} 12. Nf3 {[%emt 0:00:28]} Qc7 {[%emt 0:00:35]} 13. g3 {[%emt 0:00:27]} Kf8 {[%emt 0:01:15]} 14. Kg2 {[%emt 0:00:33]} e5 {[%emt 0:00:44]} 15. dxe5 {[%emt 0:00:30]} Bxe5 {[%emt 0:00:52]} 16. Qd1 {[%emt 0:00:49]} Qd7 {[%emt 0:00:56]} 17. h4 {[%emt 0:00:31]} Bc7 {[%emt 0:01:50]} 18. Ng5 {[%emt 0:01:23]} Ng4 {[%emt 0:01:12]} 19. Be2 {[%emt 0:00:50]} Nce5 {[%emt 0:00:55]} 20. Bf4 {[%emt 0:00:41]} Nf6 {[%emt 0:02:25]} 21. Qb3 {[%emt 0:00:52]} Qc6 {[%emt 0:00:58]} 22. Rfe1 {[%emt 0:01:07]} Nc4 {[%emt 0:00:52]} 23. Bxc7 {[%emt 0:01:30]} Qxc7 {[%emt 0:00:46]} 24. Bf3 {[%emt 0:00:28]} Rd8 {[%emt 0:02:11]} 25. Rad1 {[%emt 0:00:35]} a6 {[%emt 0:01:17]} 26. Qb4+ {[%emt 0:00:47]} Kg8 {[%emt 0:01:24]} 27. Re7 {[%emt 0:00:37]} Rd7 {[%emt 0:00:28]} 28. Rxd7 {[%emt 0:01:10]} Qxd7 {[%emt 0:00:52]} 29. Bxd5 {[%emt 0:01:06]} Rxh4 {[%emt 0:00:46]} 30. Bxf7+ {[%emt 0:00:33]} Qxf7 {[%emt 0:00:58]} 31. Rd8+ {[%emt 0:00:42]} 1-0

[Event "9th RTU Rapid 2019"]
[Site "Riga"]
[Date "2019.08.04"]
[Round "1.7"]
[White "Mulevicius, Andrius"]
[Black "Krivonosov, Oleg"]
[Result "0-1"]
[WhiteElo "1808"]
[BlackElo "2445"]
[PlyCount "36"]
[EventDate "2019.08.05"]
[EventType "swiss"]
[EventCountry "LAT"]
[TimeControl "5400+30"]
[WhiteClock "0:08:02"]
[BlackClock "0:00:16"]

1. e4 {[%emt 1:15:21]} e5 {[%emt 1:15:24]} 2. Nf3 {[%emt 0:00:26]} Nc6 {[%emt 0:00:26]} 3. d4 {[%emt 0:00:26]} exd4 {[%emt 0:00:27]} 4. Nxd4 {[%emt 0:00:30]} Bc5 {[%emt 0:00:27]} 5. c3 {[%emt 0:00:27]} Qf6 {[%emt 0:00:35]} 6. Be3 {[%emt 0:00:30]} Nge7 {[%emt 0:00:28]} 7. Na3 {[%emt 0:03:55]} Bxa3 {[%emt 0:02:48]} 8. bxa3 {[%emt 0:00:27]} O-O {[%emt 0:00:37]} 9. Qd2 {[%emt 0:01:35]} d5 {[%emt 0:01:07]} 10. Nxc6 {[%emt 0:07:33]} Qxc6 {[%emt 0:00:35]} 11. e5 {[%emt 0:01:18]} Bf5 {[%emt 0:01:24]} 12. f3 {[%emt 0:02:27]} Ng6 {[%emt 0:01:50]} 13. Bd4 {[%emt 0:00:42]} Rae8 {[%emt 0:01:30]} 14. f4 {[%emt 0:00:40]} f6 {[%emt 0:00:34]} 15. Be2 {[%emt 0:01:03]} fxe5 {[%emt 0:00:36]} 16. Be3 {[%emt 0:00:31]} exf4 {[%emt 0:00:42]} 17. Bxf4 {[%emt 0:00:26]} Nxf4 {[%emt 0:00:45]} 18. Qxf4 {[%emt 0:00:27]} Qxc3+ {[%emt 0:00:43]} 0-1

[Event "9th RTU Rapid 2019"]
[Site "Riga"]
[Date "2019.08.04"]
[Round "1.8"]
[White "Saduakassova, Dinara"]
[Black "Rakshitta Ravi"]
[Result "1-0"]
[WhiteElo "2437"]
[BlackElo "2112"]
[PlyCount "79"]
[EventDate "2019.08.05"]
[EventType "swiss"]
[EventCountry "LAT"]
[TimeControl "5400+30"]
[WhiteClock "0:00:13"]
[BlackClock "0:05:08"]

1. d4 {[%emt 1:15:22]} Nf6 {[%emt 1:15:28]} 2. c4 {[%emt 0:00:27]} g6 {[%emt 0:00:28]} 3. g3 {[%emt 0:00:26]} Bg7 {[%emt 0:00:26]} 4. Bg2 {[%emt 0:00:26]} O-O {[%emt 0:00:30]} 5. Nc3 {[%emt 0:00:26]} d6 {[%emt 0:00:32]} 6. Nf3 {[%emt 0:00:26]} c6 {[%emt 0:00:34]} 7. O-O {[%emt 0:00:28]} Qa5 {[%emt 0:00:27]} 8. e4 {[%emt 0:01:16]} e5 {[%emt 0:00:27]} 9. h3 {[%emt 0:02:04]} Nbd7 {[%emt 0:00:32]} 10. Be3 {[%emt 0:00:58]} Re8 {[%emt 0:00:29]} 11. d5 {[%emt 0:00:58]} cxd5 {[%emt 0:00:45]} 12. cxd5 {[%emt 0:00:29]} b5 {[%emt 0:00:38]} 13. Nd2 {[%emt 0:00:44]} Ba6 {[%emt 0:01:48]} 14. a3 {[%emt 0:00:38]} Rec8 {[%emt 0:01:01]} 15. Re1 {[%emt 0:01:11]} Qd8 {[%emt 0:01:11]} 16. Bf1 {[%emt 0:00:37]} Nc5 {[%emt 0:01:21]} 17. Bxc5 {[%emt 0:02:40]} Rxc5 {[%emt 0:00:39]} 18. Nb3 {[%emt 0:00:26]} Rcc8 {[%emt 0:02:19]} 19. a4 {[%emt 0:00:32]} Qb6 {[%emt 0:01:58]} 20. axb5 {[%emt 0:00:47]} Bb7 {[%emt 0:00:27]} 21. Na5 {[%emt 0:01:03]} Nd7 {[%emt 0:01:12]} 22. Nc6 {[%emt 0:00:44]} Re8 {[%emt 0:01:48]} 23. Na4 {[%emt 0:00:28]} Qc7 {[%emt 0:00:39]} 24. Rc1 {[%emt 0:00:27]} Bxc6 {[%emt 0:00:40]} 25. dxc6 {[%emt 0:00:52]} Nb6 {[%emt 0:01:29]} 26. Nc3 {[%emt 0:00:32]} Red8 {[%emt 0:00:47]} 27. Nd5 {[%emt 0:01:15]} Nxd5 {[%emt 0:00:28]} 28. Qxd5 {[%emt 0:00:26]} Rab8 {[%emt 0:00:46]} 29. Ra1 {[%emt 0:00:29]} Rb6 {[%emt 0:00:31]} 30. Ra3 {[%emt 0:00:30]} Bf8 {[%emt 0:01:09]} 31. Rea1 {[%emt 0:00:29]} Ra8 {[%emt 0:00:26]} 32. Bc4 {[%emt 0:00:32]} Kg7 {[%emt 0:00:41]} 33. Kg2 {[%emt 0:01:26]} Rbb8 {[%emt 0:00:39]} 34. Ra6 {[%emt 0:00:27]} Rb6 {[%emt 0:03:16]} 35. Rxb6 {[%emt 0:00:35]} Qxb6 {[%emt 0:00:26]} 36. Ra6 {[%emt 0:01:00]} Qd4 {[%emt 0:00:52]} 37. Qxd4 {[%emt 0:00:31]} exd4 {[%emt 0:00:26]} 38. b6 {[%emt 0:00:29]} d5 {[%emt 0:00:36]} 39. b7 {[%emt 0:00:37]} Re8 {[%emt 0:00:26]} 40. c7 {[%emt 0:00:39]} 1-0

[Event "9th RTU Rapid 2019"]
[Site "Riga"]
[Date "2019.08.04"]
[Round "1.9"]
[White "Diciunas, Valdas"]
[Black "Omelja, Artem"]
[Result "0-1"]
[WhiteElo "1765"]
[BlackElo "2436"]
[PlyCount "60"]
[EventDate "2019.08.05"]
[EventType "swiss"]
[EventCountry "LAT"]
[TimeControl "5400+30"]
[WhiteClock "0:11:23"]
[BlackClock "0:00:45"]

1. e4 {[%emt 1:15:23]} e6 {[%emt 1:15:22]} 2. Qe2 {[%emt 0:00:30]} c5 {[%emt 0:00:28]} 3. g3 {[%emt 0:00:28]} Nc6 {[%emt 0:00:26]} 4. c3 {[%emt 0:00:27]} Nf6 {[%emt 0:00:44]} 5. Bg2 {[%emt 0:00:30]} d5 {[%emt 0:00:34]} 6. d3 {[%emt 0:01:14]} Be7 {[%emt 0:00:28]} 7. f4 {[%emt 0:00:37]} b5 {[%emt 0:00:40]} 8. a3 {[%emt 0:00:27]} a5 {[%emt 0:00:30]} 9. Nh3 {[%emt 0:00:40]} Ba6 {[%emt 0:00:46]} 10. e5 {[%emt 0:01:08]} Nd7 {[%emt 0:00:28]} 11. Bd2 {[%emt 0:00:52]} b4 {[%emt 0:00:28]} 12. Nf2 {[%emt 0:01:23]} Nb6 {[%emt 0:01:23]} 13. a4 {[%emt 0:01:29]} c4 {[%emt 0:00:32]} 14. d4 {[%emt 0:00:35]} Nxd4 {[%emt 0:00:27]} 15. cxd4 {[%emt 0:00:35]} c3 {[%emt 0:00:26]} 16. Qd1 {[%emt 0:01:11]} cxd2+ {[%emt 0:00:43]} 17. Nxd2 {[%emt 0:00:31]} Rc8 {[%emt 0:00:31]} 18. Bf1 {[%emt 0:00:37]} Nc4 {[%emt 0:00:27]} 19. Nxc4 {[%emt 0:00:35]} dxc4 {[%emt 0:00:27]} 20. Ne4 {[%emt 0:01:46]} O-O {[%emt 0:00:32]} 21. Rc1 {[%emt 0:01:12]} Qb6 {[%emt 0:00:26]} 22. Kf2 {[%emt 0:03:12]} Rfd8 {[%emt 0:00:29]} 23. Ke3 {[%emt 0:00:28]} Rc7 {[%emt 0:00:33]} 24. Rc2 {[%emt 0:01:30]} Rcd7 {[%emt 0:02:50]} 25. Rd2 {[%emt 0:01:08]} c3 {[%emt 0:00:26]} 26. bxc3 {[%emt 0:03:21]} bxc3 {[%emt 0:00:27]} 27. Qg4 {[%emt 0:00:57]} cxd2 {[%emt 0:00:39]} 28. Nf6+ {[%emt 0:00:32]} Bxf6 {[%emt 0:00:28]} 29. exf6 {[%emt 0:00:26]} Qxd4+ {[%emt 0:00:27]} 30. Kf3 {[%emt 0:00:31]} Bb7+ {[%emt 0:00:30]} 0-1

[Event "9th RTU Rapid 2019"]
[Site "Riga"]
[Date "2019.08.04"]
[Round "1.10"]
[White "Bulmaga, Irina"]
[Black "Mamalis, Prokopios"]
[Result "1-0"]
[WhiteElo "2434"]
[BlackElo "1902"]
[PlyCount "47"]
[EventDate "2019.08.05"]
[EventType "swiss"]
[EventCountry "LAT"]
[TimeControl "5400+30"]
[WhiteClock "0:00:08"]
[BlackClock "0:13:17"]

1. e4 {[%emt 1:15:23]} e6 {[%emt 1:15:29]} 2. d4 {[%emt 0:00:27]} d5 {[%emt 0:00:30]} 3. Nc3 {[%emt 0:00:27]} dxe4 {[%emt 0:01:18]} 4. Nxe4 {[%emt 0:00:28]} Bd7 {[%emt 0:00:43]} 5. Nf3 {[%emt 0:00:30]} Bc6 {[%emt 0:00:34]} 6. Bd3 {[%emt 0:00:27]} Nd7 {[%emt 0:00:27]} 7. Qe2 {[%emt 0:00:27]} Ngf6 {[%emt 0:00:37]} 8. Neg5 {[%emt 0:00:31]} Bxf3 {[%emt 0:05:58]} 9. Nxf3 {[%emt 0:00:28]} Bd6 {[%emt 0:01:16]} 10. Bg5 {[%emt 0:00:37]} c6 {[%emt 0:01:57]} 11. c3 {[%emt 0:00:31]} h6 {[%emt 0:01:14]} 12. Bh4 {[%emt 0:00:34]} Qc7 {[%emt 0:01:38]} 13. O-O {[%emt 0:00:34]} O-O {[%emt 0:01:11]} 14. Rfe1 {[%emt 0:01:08]} c5 {[%emt 0:01:58]} 15. Ne5 {[%emt 0:01:21]} cxd4 {[%emt 0:01:43]} 16. cxd4 {[%emt 0:00:27]} Bxe5 {[%emt 0:00:35]} 17. dxe5 {[%emt 0:00:30]} Nd5 {[%emt 0:00:26]} 18. Rac1 {[%emt 0:00:44]} Qb6 {[%emt 0:00:53]} 19. Rc4 {[%emt 0:00:27]} Rac8 {[%emt 0:00:56]} 20. Rg4 {[%emt 0:00:29]} Nb4 {[%emt 0:00:30]} 21. Bb1 {[%emt 0:00:39]} Nc5 {[%emt 0:00:31]} 22. Rxg7+ {[%emt 0:00:35]} Kxg7 {[%emt 0:00:06]} 23. Qg4+ {[%emt 0:00:29]} Kh8 {[%emt 0:00:52]} 24. Bf6# {[%emt 0:00:05]} 1-0